[Event "Titled Tuesday Blitz August 31 2021"]
[White "Nasuta, Grzegorz"]
[Black "Chigaev, Maksim"]
[WhiteFideId "1141686"]
[BlackFideId "4108116"]
[WhiteElo "2320"]
[BlackElo "2579"]
[Result "1/2-1/2"]
[Round "03"]
[TimeControl "180+1"]
[Date "2021.08.31"]
[WhiteClock "0:00:05"]
[BlackClock "0:00:18"]

1. e4 {[%clk 0:03:00]}  e5 {[%clk 0:02:56]} 2. Nf3 {[%clk 0:03:00]}  Nc6 {[%clk 0:02:56]} 3. Bc4 {[%clk 0:02:55]}  d6 {[%clk 0:02:56]} 4. d4 {[%clk 0:02:53]}  Nf6 {[%clk 0:02:54]} 5. Nc3 {[%clk 0:02:51]}  Bg4 {[%clk 0:02:52]} 6. dxe5 {[%clk 0:02:36]}  Nxe5 {[%clk 0:02:46]} 7. Be2 {[%clk 0:02:36]}  Nxf3+ {[%clk 0:02:43]} 8. Bxf3 {[%clk 0:02:37]}  Bxf3 {[%clk 0:02:41]} 9. Qxf3 {[%clk 0:02:38]}  Be7 {[%clk 0:02:40]} 10. Be3 {[%clk 0:02:37]}  Qd7 {[%clk 0:02:39]} 11. O-O-O {[%clk 0:02:29]}  Qg4 {[%clk 0:02:33]} 12. Nb5 {[%clk 0:01:40]}  Qxf3 {[%clk 0:02:24]} 13. gxf3 {[%clk 0:01:41]}  Kd7 {[%clk 0:02:15]} 14. e5 {[%clk 0:01:27]}  Ne8 {[%clk 0:02:14]} 15. Bf4 {[%clk 0:01:16]}  a6 {[%clk 0:01:58]} 16. Nc3 {[%clk 0:00:23]}  Rd8 {[%clk 0:01:26]} 17. Rhe1 {[%clk 0:00:23]}  Kc8 {[%clk 0:01:03]} 18. Nd5 {[%clk 0:00:23]}  Bh4 {[%clk 0:01:03]} 19. Bg3 {[%clk 0:00:24]}  Bxg3 {[%clk 0:00:48]} 20. fxg3 {[%clk 0:00:23]}  Rd7 {[%clk 0:00:45]} 21. e6 {[%clk 0:00:20]}  fxe6 {[%clk 0:00:46]} 22. Rxe6 {[%clk 0:00:21]}  Rf7 {[%clk 0:00:44]} 23. Rde1 {[%clk 0:00:19]}  Kd8 {[%clk 0:00:43]} 24. f4 {[%clk 0:00:18]}  Rhf8 {[%clk 0:00:38]} 25. Kd2 {[%clk 0:00:17]}  Nf6 {[%clk 0:00:38]} 26. Nxf6 {[%clk 0:00:17]}  Rxf6 {[%clk 0:00:39]} 27. Rxf6 {[%clk 0:00:15]}  Rxf6 {[%clk 0:00:40]} 28. Kd3 {[%clk 0:00:15]}  Kd7 {[%clk 0:00:40]} 29. a4 {[%clk 0:00:15]}  b6 {[%clk 0:00:39]} 30. b3 {[%clk 0:00:15]}  d5 {[%clk 0:00:37]} 31. Re5 {[%clk 0:00:14]}  Kd6 {[%clk 0:00:37]} 32. Re8 {[%clk 0:00:14]}  Rh6 {[%clk 0:00:36]} 33. Rg8 {[%clk 0:00:06]}  Rxh2 {[%clk 0:00:32]} 34. Rxg7 {[%clk 0:00:07]}  b5 {[%clk 0:00:32]} 35. axb5 {[%clk 0:00:06]}  axb5 {[%clk 0:00:33]} 36. b4 {[%clk 0:00:07]}  Rg2 {[%clk 0:00:25]} 37. c3 {[%clk 0:00:07]}  c6 {[%clk 0:00:23]} 38. Kd4 {[%clk 0:00:07]}  Rd2+ {[%clk 0:00:23]} 39. Ke3 {[%clk 0:00:07]}  Rc2 {[%clk 0:00:20]} 40. Kd3 {[%clk 0:00:07]}  Rg2 {[%clk 0:00:20]} 41. Kd4 {[%clk 0:00:07]}  Rd2+ {[%clk 0:00:18]} 42. Ke3 {[%clk 0:00:07]}  Rc2 {[%clk 0:00:18]} 43. Kd3 {[%clk 0:00:05]}  Rg2 {[%clk 0:00:18]} 1/2-1/2


[Site "https://www.chess.com"]

[Event "Titled Tuesday Blitz August 31 2021"]
[White "Nazaretyan, Tigran"]
[Black "Reprintsev, Alexander"]
[WhiteFideId "24162345"]
[BlackFideId "14100541"]
[WhiteElo "2167"]
[BlackElo "2126"]
[Result "1/2-1/2"]
[Round "03"]
[TimeControl "180+1"]
[Date "2021.08.31"]
[WhiteClock "0:00:27"]
[BlackClock "0:00:13"]

1. d4 {[%clk 0:03:00]}  d5 {[%clk 0:02:31]} 2. c4 {[%clk 0:02:59]}  e5 {[%clk 0:02:31]} 3. dxe5 {[%clk 0:02:58]}  d4 {[%clk 0:02:31]} 4. Nf3 {[%clk 0:02:58]}  Nc6 {[%clk 0:02:31]} 5. a3 {[%clk 0:02:58]}  g6 {[%clk 0:02:30]} 6. b4 {[%clk 0:02:50]}  Bg7 {[%clk 0:02:19]} 7. Bb2 {[%clk 0:02:50]}  Nh6 {[%clk 0:02:17]} 8. e3 {[%clk 0:02:24]}  dxe3 {[%clk 0:02:10]} 9. Qxd8+ {[%clk 0:02:23]}  Nxd8 {[%clk 0:02:10]} 10. fxe3 {[%clk 0:02:23]}  O-O {[%clk 0:02:10]} 11. h3 {[%clk 0:02:19]}  Re8 {[%clk 0:01:57]} 12. Nbd2 {[%clk 0:02:17]}  Nc6 {[%clk 0:01:57]} 13. Rd1 {[%clk 0:02:11]}  a5 {[%clk 0:01:25]} 14. b5 {[%clk 0:02:10]}  Nxe5 {[%clk 0:01:25]} 15. Bxe5 {[%clk 0:02:04]}  Bxe5 {[%clk 0:01:26]} 16. Nxe5 {[%clk 0:02:04]}  Rxe5 {[%clk 0:01:26]} 17. Kf2 {[%clk 0:01:53]}  Bf5 {[%clk 0:01:18]} 18. g4 {[%clk 0:01:51]}  Be4 {[%clk 0:01:15]} 19. Nxe4 {[%clk 0:01:50]}  Rxe4 {[%clk 0:01:16]} 20. Bg2 {[%clk 0:01:45]}  Rxc4 {[%clk 0:01:15]} 21. Bxb7 {[%clk 0:01:44]}  Re8 {[%clk 0:01:15]} 22. Bc6 {[%clk 0:01:41]}  Re5 {[%clk 0:01:06]} 23. Rd3 {[%clk 0:01:40]}  f5 {[%clk 0:01:05]} 24. g5 {[%clk 0:01:38]}  Nf7 {[%clk 0:01:04]} 25. h4 {[%clk 0:01:35]}  Kf8 {[%clk 0:00:45]} 26. Kf3 {[%clk 0:01:17]}  Re7 {[%clk 0:00:37]} 27. Bd5 {[%clk 0:00:56]}  Ne5+ {[%clk 0:00:34]} 28. Ke2 {[%clk 0:00:56]}  Rc2+ {[%clk 0:00:32]} 29. Rd2 {[%clk 0:00:55]}  Rxd2+ {[%clk 0:00:31]} 30. Kxd2 {[%clk 0:00:56]}  Rd7 {[%clk 0:00:31]} 31. e4 {[%clk 0:00:54]}  fxe4 {[%clk 0:00:30]} 32. Rf1+ {[%clk 0:00:54]}  Ke7 {[%clk 0:00:25]} 33. Ke3 {[%clk 0:00:53]}  Rxd5 {[%clk 0:00:25]} 34. a4 {[%clk 0:00:52]}  Ng4+ {[%clk 0:00:19]} 35. Kxe4 {[%clk 0:00:52]}  Re5+ {[%clk 0:00:19]} 36. Kd4 {[%clk 0:00:52]}  Rf5 {[%clk 0:00:19]} 37. Rc1 {[%clk 0:00:52]}  Kd7 {[%clk 0:00:18]} 38. Ke4 {[%clk 0:00:51]}  Re5+ {[%clk 0:00:18]} 39. Kf4 {[%clk 0:00:51]}  Nf2 {[%clk 0:00:14]} 40. Rxc7+ {[%clk 0:00:44]}  Kxc7 {[%clk 0:00:14]} 41. Kxe5 {[%clk 0:00:45]}  Nd3+ {[%clk 0:00:14]} 42. Kf6 {[%clk 0:00:46]}  Ne1 {[%clk 0:00:13]} 43. Kg7 {[%clk 0:00:43]}  Nf3 {[%clk 0:00:13]} 44. Kxh7 {[%clk 0:00:41]}  Nxh4 {[%clk 0:00:14]} 45. Kg7 {[%clk 0:00:40]}  Kb6 {[%clk 0:00:15]} 46. Kf6 {[%clk 0:00:41]}  Kc5 {[%clk 0:00:16]} 47. Ke5 {[%clk 0:00:39]}  Nf3+ {[%clk 0:00:14]} 48. Kf6 {[%clk 0:00:33]}  Nh4 {[%clk 0:00:13]} 49. Kf7 {[%clk 0:00:28]}  Kb6 {[%clk 0:00:12]} 50. Ke7 {[%clk 0:00:28]}  Kc5 {[%clk 0:00:13]} 51. Kd7 {[%clk 0:00:27]}  Kb6 {[%clk 0:00:13]} 52. Ke6 {[%clk 0:00:26]}  Kc5 {[%clk 0:00:11]} 53. Ke7 {[%clk 0:00:26]}  Kb6 {[%clk 0:00:11]} 54. Ke6 {[%clk 0:00:25]}  Kc5 {[%clk 0:00:11]} 55. Kd7 {[%clk 0:00:26]}  Kb6 {[%clk 0:00:09]} 56. Ke7 {[%clk 0:00:24]}  Kc5 {[%clk 0:00:10]} 57. Kf6 {[%clk 0:00:24]}  Kb6 {[%clk 0:00:10]} 58. Ke5 {[%clk 0:00:25]}  Nf3+ {[%clk 0:00:08]} 59. Kf6 {[%clk 0:00:25]}  Nh4 {[%clk 0:00:08]} 60. Kf7 {[%clk 0:00:25]}  Kc5 {[%clk 0:00:09]} 61. Kg7 {[%clk 0:00:25]}  Kb6 {[%clk 0:00:10]} 62. Kh6 {[%clk 0:00:25]}  Kc5 {[%clk 0:00:11]} 63. Kh7 {[%clk 0:00:26]}  Kb6 {[%clk 0:00:11]} 64. Kg8 {[%clk 0:00:26]}  Kc5 {[%clk 0:00:12]} 65. Kf7 {[%clk 0:00:26]}  Kb6 {[%clk 0:00:13]} 66. Kf6 {[%clk 0:00:27]}  Kc5 {[%clk 0:00:13]} 1/2-1/2


[Site "https://www.chess.com"]

[Event "Titled Tuesday Blitz August 31 2021"]
[White "Omariev, Maksim"]
[Black "Bryakin, Mikhail"]
[WhiteFideId "4193423"]
[BlackFideId "4165314"]
[WhiteElo "2450"]
[BlackElo "2336"]
[Result "0-1"]
[Round "03"]
[TimeControl "180+1"]
[Date "2021.08.31"]
[WhiteClock "0:00:02"]
[BlackClock "0:01:23"]

1. e4 {[%clk 0:03:00]}  e5 {[%clk 0:02:30]} 2. Nf3 {[%clk 0:03:00]}  Nf6 {[%clk 0:02:28]} 3. Nxe5 {[%clk 0:03:00]}  d6 {[%clk 0:02:27]} 4. Nf3 {[%clk 0:02:59]}  Nxe4 {[%clk 0:02:27]} 5. Nc3 {[%clk 0:03:00]}  Nxc3 {[%clk 0:02:27]} 6. dxc3 {[%clk 0:03:01]}  Be7 {[%clk 0:02:28]} 7. Bf4 {[%clk 0:03:01]}  Nd7 {[%clk 0:02:29]} 8. Qd2 {[%clk 0:03:02]}  Nc5 {[%clk 0:02:29]} 9. O-O-O {[%clk 0:03:01]}  Be6 {[%clk 0:02:26]} 10. Kb1 {[%clk 0:03:00]}  Qd7 {[%clk 0:02:26]} 11. Nd4 {[%clk 0:02:52]}  O-O-O {[%clk 0:02:24]} 12. Bb5 {[%clk 0:02:35]}  c6 {[%clk 0:02:12]} 13. Be2 {[%clk 0:02:17]}  Ne4 {[%clk 0:01:56]} 14. Qe3 {[%clk 0:02:13]}  d5 {[%clk 0:01:52]} 15. Nxe6 {[%clk 0:02:08]}  fxe6 {[%clk 0:01:48]} 16. Qxa7 {[%clk 0:02:04]}  Bd6 {[%clk 0:01:49]} 17. Be3 {[%clk 0:01:48]}  Rhf8 {[%clk 0:01:39]} 18. f3 {[%clk 0:01:46]}  Nf6 {[%clk 0:01:38]} 19. c4 {[%clk 0:01:45]}  Bb8 {[%clk 0:01:38]} 20. Qa4 {[%clk 0:01:38]}  e5 {[%clk 0:01:36]} 21. cxd5 {[%clk 0:01:32]}  cxd5 {[%clk 0:01:35]} 22. Rd3 {[%clk 0:01:29]}  Qxa4 {[%clk 0:01:34]} 23. Rc3+ {[%clk 0:00:43]}  Kd7 {[%clk 0:01:31]} 24. Ra3 {[%clk 0:00:34]}  Qh4 {[%clk 0:01:30]} 25. g3 {[%clk 0:00:31]}  Qh3 {[%clk 0:01:27]} 26. Bc5 {[%clk 0:00:26]}  Bd6 {[%clk 0:01:27]} 27. Bxd6 {[%clk 0:00:17]}  Kxd6 {[%clk 0:01:28]} 28. Rd1 {[%clk 0:00:16]}  Qxh2 {[%clk 0:01:26]} 29. Bb5 {[%clk 0:00:14]}  Qxg3 {[%clk 0:01:26]} 30. c4 {[%clk 0:00:14]}  d4 {[%clk 0:01:25]} 31. b4 {[%clk 0:00:14]}  Ne4 {[%clk 0:01:23]} 32. c5+ {[%clk 0:00:13]}  Kc7 {[%clk 0:01:23]} 33. fxe4 {[%clk 0:00:02]}  Qxa3 {[%clk 0:01:22]} 34. Rd3 {[%clk 0:00:03]}  Qxb4+ {[%clk 0:01:22]} 35. Rb3 {[%clk 0:00:03]}  Qxc5 {[%clk 0:01:23]} 36. Kb2 {[%clk 0:00:02]}  Rf2+ {[%clk 0:01:23]} 37. Kb1 {[%clk 0:00:02]}  Qc2+ {[%clk 0:01:23]} 0-1


[Site "https://www.chess.com"]

[Event "Titled Tuesday Blitz August 31 2021"]
[White "Ozen, Bahadir"]
[Black "Guliev, Logman"]
[WhiteFideId "6337058"]
[BlackFideId "13400061"]
[WhiteElo "2503"]
[BlackElo "2128"]
[Result "1/2-1/2"]
[Round "03"]
[TimeControl "180+1"]
[Date "2021.08.31"]
[WhiteClock "0:00:26"]
[BlackClock "0:00:17"]

1. b3 {[%clk 0:03:00]}  d5 {[%clk 0:02:58]} 2. Bb2 {[%clk 0:03:01]}  Nf6 {[%clk 0:02:59]} 3. e3 {[%clk 0:03:01]}  e6 {[%clk 0:02:59]} 4. f4 {[%clk 0:02:59]}  c5 {[%clk 0:02:55]} 5. Nf3 {[%clk 0:02:59]}  Nc6 {[%clk 0:02:56]} 6. Bb5 {[%clk 0:03:00]}  Bd7 {[%clk 0:02:55]} 7. O-O {[%clk 0:03:00]}  Bd6 {[%clk 0:02:54]} 8. d3 {[%clk 0:02:59]}  a6 {[%clk 0:02:54]} 9. Bxc6 {[%clk 0:02:59]}  Bxc6 {[%clk 0:02:55]} 10. Nbd2 {[%clk 0:02:56]}  O-O {[%clk 0:02:51]} 11. Ne5 {[%clk 0:02:55]}  Nd7 {[%clk 0:02:49]} 12. Qh5 {[%clk 0:02:48]}  Nxe5 {[%clk 0:02:31]} 13. Bxe5 {[%clk 0:02:39]}  Bxe5 {[%clk 0:02:31]} 14. fxe5 {[%clk 0:02:26]}  b5 {[%clk 0:02:01]} 15. Rf4 {[%clk 0:02:25]}  f5 {[%clk 0:01:52]} 16. exf6 {[%clk 0:02:23]}  Rxf6 {[%clk 0:01:51]} 17. Raf1 {[%clk 0:02:00]}  Rxf4 {[%clk 0:01:50]} 18. Rxf4 {[%clk 0:02:00]}  Qe8 {[%clk 0:01:51]} 19. Qe5 {[%clk 0:01:58]}  Qe7 {[%clk 0:01:36]} 20. Nf3 {[%clk 0:01:57]}  h6 {[%clk 0:01:35]} 21. h4 {[%clk 0:01:46]}  Rf8 {[%clk 0:01:32]} 22. Rxf8+ {[%clk 0:01:45]}  Kxf8 {[%clk 0:01:31]} 23. Qb8+ {[%clk 0:01:31]}  Be8 {[%clk 0:01:28]} 24. Ne5 {[%clk 0:01:31]}  Kg8 {[%clk 0:01:20]} 25. Ng6 {[%clk 0:01:18]}  Qf7 {[%clk 0:01:20]} 26. h5 {[%clk 0:01:12]}  Kh7 {[%clk 0:01:19]} 27. Qd8 {[%clk 0:01:11]}  Qg8 {[%clk 0:00:59]} 28. Nf4 {[%clk 0:00:57]}  Bf7 {[%clk 0:00:56]} 29. Qd6 {[%clk 0:00:54]}  Qc8 {[%clk 0:00:51]} 30. Qe7 {[%clk 0:00:50]}  Kg8 {[%clk 0:00:47]} 31. a3 {[%clk 0:00:38]}  c4 {[%clk 0:00:47]} 32. b4 {[%clk 0:00:36]}  cxd3 {[%clk 0:00:44]} 33. cxd3 {[%clk 0:00:36]}  Qc1+ {[%clk 0:00:44]} 34. Kf2 {[%clk 0:00:37]}  Qc2+ {[%clk 0:00:40]} 35. Kf3 {[%clk 0:00:34]}  Qd1+ {[%clk 0:00:33]} 36. Kf2 {[%clk 0:00:34]}  Qd2+ {[%clk 0:00:28]} 37. Kf3 {[%clk 0:00:32]}  Qd1+ {[%clk 0:00:24]} 38. Kf2 {[%clk 0:00:27]}  Qd2+ {[%clk 0:00:20]} 39. Kf3 {[%clk 0:00:26]}  Qd1+ {[%clk 0:00:17]} 1/2-1/2


[Site "https://www.chess.com"]

[Event "Titled Tuesday Blitz August 31 2021"]
[White "Papasimakopoulos, Alexandros"]
[Black "Semcesen, Daniel"]
[WhiteFideId "4244125"]
[BlackFideId "1706993"]
[WhiteElo "2352"]
[BlackElo "2505"]
[Result "1-0"]
[Round "03"]
[TimeControl "180+1"]
[Date "2021.08.31"]
[WhiteClock "0:00:10"]
[BlackClock "0:00:01"]

1. d4 {[%clk 0:02:55]}  e6 {[%clk 0:02:59]} 2. c4 {[%clk 0:02:55]}  d5 {[%clk 0:02:58]} 3. Nc3 {[%clk 0:02:55]}  Nf6 {[%clk 0:02:58]} 4. cxd5 {[%clk 0:02:55]}  exd5 {[%clk 0:02:58]} 5. Bg5 {[%clk 0:02:54]}  c6 {[%clk 0:02:52]} 6. e3 {[%clk 0:02:55]}  Qb6 {[%clk 0:02:51]} 7. Qd2 {[%clk 0:02:50]}  Be7 {[%clk 0:02:45]} 8. Bd3 {[%clk 0:02:50]}  Nbd7 {[%clk 0:02:44]} 9. Nf3 {[%clk 0:02:49]}  O-O {[%clk 0:02:42]} 10. O-O {[%clk 0:02:49]}  Qd8 {[%clk 0:02:41]} 11. Qc2 {[%clk 0:02:45]}  Re8 {[%clk 0:02:40]} 12. h3 {[%clk 0:02:44]}  Ne4 {[%clk 0:02:28]} 13. Bf4 {[%clk 0:02:31]}  Ndf6 {[%clk 0:02:20]} 14. Rab1 {[%clk 0:02:30]}  a5 {[%clk 0:02:17]} 15. Ne5 {[%clk 0:02:26]}  Nd6 {[%clk 0:01:54]} 16. a3 {[%clk 0:02:10]}  g6 {[%clk 0:01:45]} 17. b4 {[%clk 0:02:10]}  axb4 {[%clk 0:01:45]} 18. axb4 {[%clk 0:02:09]}  Bf5 {[%clk 0:01:45]} 19. Bxf5 {[%clk 0:02:08]}  Nxf5 {[%clk 0:01:45]} 20. b5 {[%clk 0:02:08]}  c5 {[%clk 0:01:28]} 21. dxc5 {[%clk 0:02:06]}  Bxc5 {[%clk 0:01:28]} 22. Rfd1 {[%clk 0:01:56]}  Rc8 {[%clk 0:01:22]} 23. Qb3 {[%clk 0:01:52]}  Ne7 {[%clk 0:00:58]} 24. e4 {[%clk 0:01:43]}  Qb6 {[%clk 0:00:53]} 25. Rb2 {[%clk 0:01:29]}  Bd4 {[%clk 0:00:50]} 26. Rc2 {[%clk 0:01:24]}  Bxc3 {[%clk 0:00:48]} 27. Rxc3 {[%clk 0:01:21]}  Rxc3 {[%clk 0:00:48]} 28. Qxc3 {[%clk 0:01:21]}  Nxe4 {[%clk 0:00:48]} 29. Qb2 {[%clk 0:01:18]}  Qe6 {[%clk 0:00:43]} 30. Nf3 {[%clk 0:01:14]}  Rc8 {[%clk 0:00:39]} 31. Ng5 {[%clk 0:00:41]}  Nxg5 {[%clk 0:00:34]} 32. Bxg5 {[%clk 0:00:41]}  Nf5 {[%clk 0:00:33]} 33. g4 {[%clk 0:00:34]}  Nd6 {[%clk 0:00:26]} 34. Bh6 {[%clk 0:00:33]}  f6 {[%clk 0:00:26]} 35. Qd4 {[%clk 0:00:24]}  Nf7 {[%clk 0:00:20]} 36. Bf4 {[%clk 0:00:20]}  Rd8 {[%clk 0:00:19]} 37. Bc7 {[%clk 0:00:18]}  Rd7 {[%clk 0:00:19]} 38. b6 {[%clk 0:00:19]}  Ne5 {[%clk 0:00:17]} 39. Kg2 {[%clk 0:00:19]}  Kf7 {[%clk 0:00:15]} 40. Re1 {[%clk 0:00:19]}  Re7 {[%clk 0:00:12]} 41. Bd8 {[%clk 0:00:18]}  Rd7 {[%clk 0:00:11]} 42. Bc7 {[%clk 0:00:17]}  Nc6 {[%clk 0:00:11]} 43. Qd2 {[%clk 0:00:16]}  Ne5 {[%clk 0:00:10]} 44. f4 {[%clk 0:00:16]}  Qc6 {[%clk 0:00:04]} 45. fxe5 {[%clk 0:00:16]}  d4+ {[%clk 0:00:04]} 46. Kh2 {[%clk 0:00:16]}  fxe5 {[%clk 0:00:05]} 47. Rxe5 {[%clk 0:00:16]}  d3 {[%clk 0:00:04]} 48. Re3 {[%clk 0:00:16]}  Qc2 {[%clk 0:00:02]} 49. Qxc2 {[%clk 0:00:16]}  dxc2 {[%clk 0:00:03]} 50. Rc3 {[%clk 0:00:17]}  Rd2+ {[%clk 0:00:03]} 51. Kg3 {[%clk 0:00:18]}  Rd3+ {[%clk 0:00:03]} 52. Rxd3 {[%clk 0:00:16]}  c1=Q {[%clk 0:00:03]} 53. Rd7+ {[%clk 0:00:15]}  Ke6 {[%clk 0:00:03]} 54. Rxh7 {[%clk 0:00:15]}  Qe3+ {[%clk 0:00:02]} 55. Kh4 {[%clk 0:00:15]}  g5+ {[%clk 0:00:03]} 56. Kh5 {[%clk 0:00:13]}  Qxh3+ {[%clk 0:00:03]} 57. Kg6 {[%clk 0:00:14]}  Qd3+ {[%clk 0:00:02]} 58. Kh6 {[%clk 0:00:14]}  Qh3+ {[%clk 0:00:01]} 59. Kg7 {[%clk 0:00:11]}  Qc3+ {[%clk 0:00:01]} 60. Kg8 {[%clk 0:00:10]} 1-0


[Site "https://www.chess.com"]

[Event "Titled Tuesday Blitz August 31 2021"]
[White "Petriashvili, Nikoloz"]
[Black "Mokshanov, Alexey"]
[WhiteFideId "13611216"]
[BlackFideId "24121657"]
[WhiteElo "2430"]
[BlackElo "2262"]
[Result "1-0"]
[Round "03"]
[TimeControl "180+1"]
[Date "2021.08.31"]
[WhiteClock "0:00:14"]
[BlackClock "0:00:02"]

1. e4 {[%clk 0:03:00]}  e6 {[%clk 0:02:56]} 2. d4 {[%clk 0:02:59]}  d5 {[%clk 0:02:56]} 3. Nd2 {[%clk 0:03:00]}  Nf6 {[%clk 0:02:56]} 4. e5 {[%clk 0:02:58]}  Nfd7 {[%clk 0:02:57]} 5. Bd3 {[%clk 0:02:58]}  c5 {[%clk 0:02:57]} 6. c3 {[%clk 0:02:59]}  Nc6 {[%clk 0:02:58]} 7. Ngf3 {[%clk 0:02:57]}  Qb6 {[%clk 0:02:55]} 8. Qb3 {[%clk 0:02:47]}  Qxb3 {[%clk 0:02:49]} 9. axb3 {[%clk 0:02:47]}  cxd4 {[%clk 0:02:49]} 10. cxd4 {[%clk 0:02:47]}  Nb4 {[%clk 0:02:44]} 11. Bb1 {[%clk 0:02:47]}  Nb6 {[%clk 0:02:42]} 12. O-O {[%clk 0:02:46]}  Bd7 {[%clk 0:02:43]} 13. Re1 {[%clk 0:02:37]}  Bb5 {[%clk 0:02:39]} 14. Nf1 {[%clk 0:02:34]}  a6 {[%clk 0:02:22]} 15. Bd2 {[%clk 0:02:30]}  Rc8 {[%clk 0:02:10]} 16. Bc3 {[%clk 0:02:02]}  Be7 {[%clk 0:02:04]} 17. Ne3 {[%clk 0:02:00]}  h6 {[%clk 0:01:55]} 18. Nc2 {[%clk 0:01:54]}  Nd3 {[%clk 0:01:48]} 19. Rd1 {[%clk 0:01:48]}  Nf4 {[%clk 0:01:43]} 20. Kh1 {[%clk 0:01:35]}  Be2 {[%clk 0:01:37]} 21. Rd2 {[%clk 0:01:22]}  Bxf3 {[%clk 0:01:28]} 22. gxf3 {[%clk 0:01:17]}  O-O {[%clk 0:01:23]} 23. Ne3 {[%clk 0:01:15]}  f6 {[%clk 0:01:17]} 24. exf6 {[%clk 0:01:11]}  Bxf6 {[%clk 0:01:17]} 25. Ng2 {[%clk 0:01:08]}  Bg5 {[%clk 0:00:46]} 26. Nxf4 {[%clk 0:00:54]}  Rxf4 {[%clk 0:00:46]} 27. Rd3 {[%clk 0:00:54]}  Rh4 {[%clk 0:00:38]} 28. Kg2 {[%clk 0:00:49]}  Nd7 {[%clk 0:00:33]} 29. Bc2 {[%clk 0:00:38]}  Nf8 {[%clk 0:00:32]} 30. Rdd1 {[%clk 0:00:36]}  Kf7 {[%clk 0:00:16]} 31. h3 {[%clk 0:00:33]}  Ng6 {[%clk 0:00:16]} 32. Bxg6+ {[%clk 0:00:33]}  Kxg6 {[%clk 0:00:17]} 33. Re1 {[%clk 0:00:33]}  Kf7 {[%clk 0:00:15]} 34. Re2 {[%clk 0:00:33]}  Bf6 {[%clk 0:00:15]} 35. Rd1 {[%clk 0:00:32]}  Ke7 {[%clk 0:00:13]} 36. Kg3 {[%clk 0:00:30]}  g5 {[%clk 0:00:12]} 37. Bb4+ {[%clk 0:00:25]}  Kd7 {[%clk 0:00:12]} 38. Bc5 {[%clk 0:00:25]}  Rc6 {[%clk 0:00:11]} 39. Red2 {[%clk 0:00:21]}  Bd8 {[%clk 0:00:10]} 40. Kg2 {[%clk 0:00:20]}  Ba5 {[%clk 0:00:09]} 41. Re2 {[%clk 0:00:19]}  Bd8 {[%clk 0:00:07]} 42. Bf8 {[%clk 0:00:19]}  Bf6 {[%clk 0:00:06]} 43. Red2 {[%clk 0:00:17]}  Rc8 {[%clk 0:00:06]} 44. Bc5 {[%clk 0:00:17]}  Rc6 {[%clk 0:00:06]} 45. Rd3 {[%clk 0:00:16]}  Rc8 {[%clk 0:00:05]} 46. Bb4 {[%clk 0:00:16]}  Rc6 {[%clk 0:00:04]} 47. Bd2 {[%clk 0:00:16]}  Be7 {[%clk 0:00:03]} 48. Be3 {[%clk 0:00:16]}  Bd6 {[%clk 0:00:04]} 49. Rc3 {[%clk 0:00:15]}  Rc8 {[%clk 0:00:03]} 50. Rdc1 {[%clk 0:00:15]}  Rf8 {[%clk 0:00:02]} 51. R3c2 {[%clk 0:00:14]}  Rf7 {[%clk 0:00:02]} 52. Rc8 {[%clk 0:00:14]} 1-0


[Site "https://www.chess.com"]

[Event "Titled Tuesday Blitz August 31 2021"]
[White "Rakhmanov, Aleksandr"]
[Black "Viani Antonio Dcunha"]
[WhiteFideId "4173708"]
[BlackFideId "5027330"]
[WhiteElo "2498"]
[BlackElo "2366"]
[Result "1/2-1/2"]
[Round "03"]
[TimeControl "180+1"]
[Date "2021.08.31"]
[WhiteClock "0:00:14"]
[BlackClock "0:00:14"]

1. c4 {[%clk 0:02:54]}  e5 {[%clk 0:02:58]} 2. Nf3 {[%clk 0:02:53]}  Nc6 {[%clk 0:02:57]} 3. d4 {[%clk 0:02:52]}  exd4 {[%clk 0:02:54]} 4. Nxd4 {[%clk 0:02:53]}  Nf6 {[%clk 0:02:53]} 5. Nxc6 {[%clk 0:02:53]}  bxc6 {[%clk 0:02:52]} 6. g3 {[%clk 0:02:53]}  d5 {[%clk 0:02:49]} 7. Bg2 {[%clk 0:02:52]}  Be6 {[%clk 0:02:38]} 8. O-O {[%clk 0:02:52]}  Be7 {[%clk 0:02:33]} 9. Nc3 {[%clk 0:02:51]}  O-O {[%clk 0:02:30]} 10. cxd5 {[%clk 0:02:50]}  cxd5 {[%clk 0:02:27]} 11. Bg5 {[%clk 0:02:50]}  Rb8 {[%clk 0:02:20]} 12. b3 {[%clk 0:02:43]}  h6 {[%clk 0:01:42]} 13. Bxf6 {[%clk 0:02:42]}  Bxf6 {[%clk 0:01:43]} 14. Rc1 {[%clk 0:02:42]}  c6 {[%clk 0:01:40]} 15. e4 {[%clk 0:02:22]}  Qa5 {[%clk 0:01:26]} 16. Na4 {[%clk 0:01:57]}  dxe4 {[%clk 0:01:20]} 17. Bxe4 {[%clk 0:01:50]}  Rfd8 {[%clk 0:01:12]} 18. Qf3 {[%clk 0:01:49]}  Rd2 {[%clk 0:01:04]} 19. Nc5 {[%clk 0:01:30]}  Bh3 {[%clk 0:00:58]} 20. Rfd1 {[%clk 0:01:27]}  Qxa2 {[%clk 0:00:50]} 21. Rxd2 {[%clk 0:01:16]}  Qxd2 {[%clk 0:00:48]} 22. Rd1 {[%clk 0:01:17]}  Qg5 {[%clk 0:00:44]} 23. Qe3 {[%clk 0:00:35]}  Qxe3 {[%clk 0:00:40]} 24. fxe3 {[%clk 0:00:36]}  Be7 {[%clk 0:00:39]} 25. Rc1 {[%clk 0:00:31]}  Rb5 {[%clk 0:00:33]} 26. Nd3 {[%clk 0:00:15]}  Rxb3 {[%clk 0:00:31]} 27. Rxc6 {[%clk 0:00:15]}  a5 {[%clk 0:00:15]} 28. Rc7 {[%clk 0:00:13]}  Bg5 {[%clk 0:00:14]} 29. Kf2 {[%clk 0:00:12]}  Be6 {[%clk 0:00:11]} 30. Ra7 {[%clk 0:00:10]}  Rb8 {[%clk 0:00:09]} 31. Rxa5 {[%clk 0:00:08]}  Re8 {[%clk 0:00:09]} 32. Nf4 {[%clk 0:00:07]}  Bd7 {[%clk 0:00:07]} 33. Bd5 {[%clk 0:00:06]}  Bxf4 {[%clk 0:00:06]} 34. gxf4 {[%clk 0:00:04]}  Be6 {[%clk 0:00:07]} 35. Bxe6 {[%clk 0:00:04]}  Rxe6 {[%clk 0:00:08]} 36. Kf3 {[%clk 0:00:05]}  g6 {[%clk 0:00:08]} 37. h4 {[%clk 0:00:05]}  h5 {[%clk 0:00:08]} 38. f5 {[%clk 0:00:05]}  Re8 {[%clk 0:00:07]} 39. Kf4 {[%clk 0:00:04]}  Kg7 {[%clk 0:00:05]} 40. e4 {[%clk 0:00:05]}  Re7 {[%clk 0:00:05]} 41. Ra6 {[%clk 0:00:04]}  f6 {[%clk 0:00:05]} 42. fxg6 {[%clk 0:00:04]}  Kxg6 {[%clk 0:00:06]} 43. Ra5 {[%clk 0:00:04]}  Re6 {[%clk 0:00:06]} 44. Rb5 {[%clk 0:00:05]}  Re7 {[%clk 0:00:06]} 45. e5 {[%clk 0:00:05]}  Rxe5 {[%clk 0:00:06]} 46. Rxe5 {[%clk 0:00:06]}  fxe5+ {[%clk 0:00:07]} 47. Kxe5 {[%clk 0:00:06]}  Kh6 {[%clk 0:00:08]} 48. Kf5 {[%clk 0:00:07]}  Kh7 {[%clk 0:00:08]} 49. Kg5 {[%clk 0:00:08]}  Kh8 {[%clk 0:00:09]} 50. Kxh5 {[%clk 0:00:09]}  Kg8 {[%clk 0:00:10]} 51. Kh6 {[%clk 0:00:10]}  Kh8 {[%clk 0:00:11]} 52. h5 {[%clk 0:00:11]}  Kg8 {[%clk 0:00:12]} 53. Kg6 {[%clk 0:00:12]}  Kh8 {[%clk 0:00:13]} 54. h6 {[%clk 0:00:13]}  Kg8 {[%clk 0:00:14]} 55. h7+ {[%clk 0:00:14]}  Kh8 {[%clk 0:00:14]} 56. Kh6 {[%clk 0:00:14]} 1/2-1/2


[Site "https://www.chess.com"]